bitfinex/quotes_ETHUSD_20241217
["timestamp","ask_amount","ask_price","bid_price","bid_amount"]
[1734424658748,2.32997463,4007.1,4006.3,0.8064]
[1734424659197,2.32997463,4007.1,4006.4,0.55]
[1734424659625,2.32997463,4007.1,4006.3,1.3564]
[1734424659802,2.32997463,4007.1,4006.6,0.8064]
[1734424660095,1.12677297,4008.0,4006.8,0.8064]
[1734424660282,2.32997463,4007.9,4006.9,0.55]
[1734424660483,2.32997463,4007.5,4006.9,0.55]
[1734424663976,2.32997463,4007.0,4006.8,0.8064]
[1734424664500,2.32997463,4007.4,4006.8,0.8064]
[1734424665491,2.32997463,4007.4,4006.9,0.55]
[1734424666677,2.32997463,4007.4,4006.5,0.7995]
[1734424666864,2.32997463,4007.4,4006.8,0.55]
[1734424667065,2.32997463,4007.4,4006.9,0.7995]
[1734424667303,2.32997463,4007.4,4007.0,0.55]
[1734424667664,2.32997463,4007.7,4007.0,0.55]
[1734424670594,2.32997463,4007.7,4007.2,0.55]
[1734424671387,2.66727355,4007.7,4007.2,0.55]
[1734424672287,2.32997463,4007.7,4007.2,0.55]
[1734424672590,2.32997463,4007.7,4007.3,0.7727]
[1734424672761,1.56445139,4008.4,4006.7,0.29257196]
[1734424672762,2.32997463,4008.1,4007.4,0.55]
[1734424672963,2.32997463,4008.1,4007.6,0.55]
[1734424673851,3.37298922,4008.5,4007.6,0.55]
[1734424674002,2.32997463,4008.5,4007.8,0.55]
[1734424674333,3.37298922,4008.5,4007.8,0.55]
[1734424675148,1.04301459,4008.4,4007.8,0.55]
[1734424675348,1.04301459,4008.6,4007.8,0.55]
[1734424675518,1.5663,4008.9,4007.8,0.55]
[1734424675519,2.32997463,4008.4,4007.8,0.55]
[1734424676386,3.37298922,4008.4,4007.8,0.55]
[1734424677133,2.32997463,4008.4,4007.8,0.55]
[1734424677554,2.32997463,4008.4,4008.0,0.55]
[1734424679978,2.32997463,4008.4,4008.0,0.68227]
[1734424680181,2.32997463,4008.4,4008.2,0.55]
[1734424680391,1.04301459,4008.9,4008.3,0.759]
[1734424680535,1.56445139,4009.1,4008.4,0.55]
[1734424680536,1.04301459,4009.1,4008.4,0.55]
[1734424681552,3.37298922,4009.2,4008.4,0.55]
[1734424681752,2.32997463,4008.8,4008.4,0.55]
[1734424683541,3.37298922,4008.8,4008.4,0.55]
[1734424683743,2.32997463,4008.8,4008.4,0.55]
[1734424684436,2.83668163,4008.8,4008.4,0.55]
[1734424684595,3.87969622,4008.8,4008.4,0.55]
[1734424684796,4.66589622,4008.8,4007.5,0.55]
[1734424685116,1.04301459,4008.8,4007.7,0.55]
[1734424685274,1.04301459,4008.8,4008.0,0.759]
[1734424685475,2.32997463,4008.5,4008.1,0.55]
[1734424686217,1.04301459,4008.8,4008.1,0.55]
[1734424686415,2.32997463,4008.7,4008.1,0.55]
[1734424686717,0.33729892,4008.6,4008.1,0.55]
[1734424687277,1.38031351,4008.6,4008.1,0.55]
[1734424687477,3.37298922,4008.8,4008.3,0.55]
[1734424687730,2.32997463,4008.8,4008.5,0.55]
[1734424688393,1.04301459,4009.0,4008.5,0.55]
[1734424688589,1.04301459,4009.0,4008.6,0.759]
[1734424688902,1.04301459,4009.4,4009.0,0.55]
[1734424689627,1.04301459,4009.5,4009.0,0.55]
[1734424689836,2.32997463,4009.6,4009.2,0.55]
[1734424689837,3.37298922,4009.6,4009.2,0.55]
[1734424690002,2.08914933,4010.0,4009.2,0.55]
[1734424690003,1.04301459,4009.9,4009.3,0.759]
[1734424690203,1.04301459,4009.9,4009.4,0.55]
[1734424690392,1.56445139,4010.1,4009.4,0.55]
[1734424690393,1.04301459,4010.1,4009.4,0.55]
[1734424690592,3.37298922,4010.1,4009.5,0.759]
[1734424690803,3.37298922,4010.1,4009.6,0.55]
[1734424691126,4.07614821,4010.1,4009.6,0.55]
[1734424691296,3.03313362,4010.1,4009.6,0.55]
[1734424691932,2.32997463,4009.7,4009.6,0.55]
[1734424692288,2.32997463,4009.7,4009.5,0.759]
[1734424692531,2.32997463,4009.7,4008.9,1.309]
[1734424692837,1.82921459,4010.0,4008.9,1.309]
[1734424692838,2.32997463,4009.3,4008.9,1.309]
[1734424693034,2.32997463,4009.3,4008.9,0.759]
[1734424693333,2.32997463,4009.4,4008.9,0.759]
[1734424694197,2.32997463,4009.4,4009.0,0.55]
[1734424694396,2.32997463,4009.4,4008.9,0.759]
[1734424694628,2.32997463,4009.4,4009.0,0.55]
[1734424695910,2.32997463,4009.4,4008.5,0.31686819]
[1734424695911,2.32997463,4009.4,4009.2,0.55]
[1734424698007,2.32997463,4009.4,4008.9,0.7763]
[1734424698212,2.32997463,4009.4,4008.8,0.55]
[1734424698213,2.32997463,4009.4,4009.2,0.55]
[1734424698622,1.04801459,4010.3,4009.3,0.7763]
[1734424698822,1.04801459,4010.3,4009.4,0.55]
[1734424698823,2.32997463,4010.1,4009.4,0.55]
[1734424699023,2.32997463,4009.7,4009.4,0.55]
[1734424704151,2.32997463,4010.1,4009.6,0.55]
[1734424704448,0.005,4010.3,4009.7,0.7763]
[1734424704650,0.005,4010.3,4009.9,0.7763]
[1734424704955,0.005,4010.3,4010.0,0.55]
[1734424705516,0.005,4010.3,4010.2,0.55]
[1734424705850,0.005,4010.3,4010.2,1.3263]
[1734424713556,0.005,4010.3,4010.2,4.64316819]
[1734424713857,0.005,4010.7,4010.5,0.7763]
[1734424714060,0.005,4010.7,4010.6,0.33907991]
[1734424714236,0.005,4010.7,4010.6,1.61550139]
[1734424714435,0.005,4010.7,4010.6,1.11537991]
[1734424715754,0.005,4010.7,4010.6,1.66537991]
[1734424716286,0.00106062,4011.2,4010.7,0.55]
[1734424716491,0.00106062,4011.2,4010.8,0.7763]
[1734424718231,0.00106062,4011.2,4010.9,0.55]
[1734424718582,0.00106062,4011.2,4011.1,0.55]
[1734424718728,0.00106062,4011.2,4011.1,1.3263]
[1734424718929,0.00106062,4011.2,4011.1,0.7763]
[1734424719822,0.00106062,4011.2,4011.1,1.4262852]
[1734424720362,0.00106062,4011.2,4011.1,1.9762852]
[1734424720549,0.00106062,4011.2,4011.1,2.17391372]
[1734424723326,0.25985402,4011.7,4011.3,0.7763]
[1734424723525,0.25985402,4011.7,4011.4,0.6499852]
[1734424723728,0.25985402,4011.7,4011.5,0.7763]
[1734424724228,0.25985402,4011.7,4011.2,4.3263]
[1734424724849,0.25985402,4011.7,4011.3,0.7763]
[1734424725026,2.32997463,4012.2,4011.4,0.33907991]
[1734424725232,2.32997463,4012.2,4011.5,0.8099]
[1734424725472,2.32997463,4012.2,4011.5,1.4598852]
[1734424725801,0.7738,4012.7,4011.5,1.4598852]
[1734424725802,0.005,4012.9,4011.7,0.8099]
[1734424725932,0.005,4012.9,4011.8,0.16039785]
[1734424725933,2.32997463,4012.8,4011.8,0.16039785]
[1734424726131,2.32997463,4012.8,4011.9,0.8099]
[1734424726516,2.32997463,4012.8,4012.0,0.31090529]
[1734424727254,2.32997463,4012.8,4012.1,0.55]
[1734424728156,2.32997463,4012.8,4012.0,0.55]
[1734424728355,2.32997463,4012.4,4012.0,0.55]
[1734424729951,3.33677209,4012.4,4011.6,3.0]
[1734424730181,3.33677209,4012.4,4011.3,0.8099]
[1734424730182,2.32997463,4011.8,4011.3,0.8099]
[1734424730404,2.32997463,4011.8,4011.3,1.14897991]
[1734424730760,2.32997463,4012.2,4011.4,1.4598852]
[1734424731466,2.32997463,4012.2,4011.5,0.55]
[1734424731673,2.32997463,4012.2,4011.5,0.75098852]
[1734424731995,2.32997463,4012.2,4011.5,1.40097372]
[1734424732354,2.32997463,4012.6,4011.8,0.8099]
[1734424732552,2.32997463,4012.6,4011.9,0.55]
[1734424732960,2.33497463,4012.9,4011.9,3.86090529]
[1734424733186,2.33497463,4012.9,4012.1,0.55]
[1734424733596,2.33497463,4012.9,4012.2,0.8099]
[1734424733767,2.33497463,4012.9,4012.3,0.55]
[1734424734166,2.32997463,4012.5,4012.3,0.55]
[1734424740474,2.33497463,4012.9,4012.3,0.55]
[1734424740659,2.33497463,4012.9,4012.5,0.55]
[1734424741110,2.33497463,4012.9,4012.4,0.55]
[1734424741409,2.33497463,4012.9,4012.6,0.55]
[1734424741706,0.005,4012.9,4012.6,0.55]
[1734424742719,2.33497463,4012.9,4012.6,0.55]
[1734424743393,2.33497463,4012.9,4011.8,0.7854]
[1734424743394,2.32997463,4012.8,4011.8,0.7854]
[1734424743589,2.32997463,4011.9,4011.8,0.7854]
[1734424744468,2.32997463,4011.9,4011.5,0.7854]
[1734424744801,2.32997463,4011.9,4011.6,0.33907991]
[1734424745003,2.32997463,4011.9,4011.7,0.15609918]
[1734424745513,2.32997463,4011.9,4011.8,0.55]
[1734424747433,2.32997463,4011.9,4011.8,1.9853852]
[1734424749426,2.32997463,4011.9,4011.8,1.3354]
[1734424751082,2.32997463,4011.9,4011.8,1.9853852]
[1734424751418,2.32997463,4012.3,4011.8,2.19953364]
[1734424751648,2.32997463,4012.3,4012.0,0.55]
[1734424751827,2.32997463,4012.3,4012.1,0.6499852]
[1734424752116,2.32997463,4012.3,4012.2,1.3804]
[1734424752290,2.32997463,4012.3,4012.2,1.58343852]
[1734424753977,2.32997463,4012.3,4012.2,0.75303852]
[1734424754331,2.32997463,4012.3,4011.9,0.8304]
[1734424754332,2.32997463,4012.3,4012.0,0.55]
[1734424754846,2.32997463,4012.8,4012.3,3.0]
[1734424755184,2.32997463,4012.8,4012.4,0.55]
[1734424755395,2.32997463,4012.8,4012.3,3.0]
[1734424755807,2.32997463,4012.8,4012.0,0.55]
[1734424756010,2.32997463,4012.8,4012.3,3.0]
[1734424756311,2.32997463,4012.8,4012.2,0.55]
[1734424756709,2.32997463,4012.8,4012.1,0.16913053]
[1734424756710,2.32997463,4012.8,4012.4,0.55]
[1734424757419,0.005,4012.9,4012.4,0.55]
[1734424761347,0.005,4012.9,4012.4,3.55]
[1734424761549,0.005,4012.9,4012.6,0.55]
[1734424762001,0.005,4012.9,4012.4,0.55]
[1734424762206,0.005,4012.9,4012.4,0.86090529]
[1734424762420,0.005,4012.9,4012.4,3.86090529]
[1734424762621,0.005,4012.9,4012.4,0.86090529]
[1734424762821,0.005,4012.9,4012.6,0.55]
[1734424763416,0.005,4012.9,4012.6,0.86090529]
[1734424763619,0.8013,4012.9,4012.6,0.86090529]
[1734424766615,0.8013,4012.9,4012.6,0.55]
[1734424766818,0.8013,4012.9,4012.4,0.55]
[1734424767016,0.8013,4012.9,4012.4,3.55]
[1734424767220,0.8013,4012.9,4012.6,0.55]
[1734424767622,0.8013,4012.9,4012.4,3.0]
[1734424767853,0.8013,4012.9,4012.2,0.55]
[1734424768056,0.8013,4012.9,4012.5,0.55]
[1734424768370,0.77553396,4012.9,4012.7,0.55]
[1734424768850,0.77553396,4012.9,4012.7,0.72499852]
[1734424769224,2.32997463,4013.1,4012.9,0.55]
[1734424769422,2.32997463,4013.1,4012.7,0.88907991]
[1734424769423,3.37298922,4013.1,4012.7,0.55]
[1734424769623,2.32997463,4013.1,4012.3,0.55]
[1734424769956,2.32997463,4013.1,4012.3,0.86090529]
[1734424770112,1.04301459,4013.2,4012.4,0.7691]
[1734424770314,1.04301459,4013.2,4012.5,0.72560654]
[1734424771211,1.80801459,4013.2,4012.5,1.03651183]
[1734424771670,1.04301459,4013.1,4012.5,1.03651183]
[1734424773852,1.04301459,4013.1,4012.5,0.72560654]
[1734424774052,1.04301459,4013.1,4012.3,0.55]
[1734424774251,1.04301459,4013.1,4012.3,3.55]
[1734424774828,1.04301459,4013.1,4012.3,0.55]
[1734424775153,1.04301459,4013.0,4012.2,0.55]
[1734424775354,1.04301459,4013.0,4012.2,0.86090529]
[1734424775722,1.04301459,4013.0,4012.3,0.31090529]
[1734424776141,1.04301459,4013.0,4012.4,0.55]
[1734424776545,1.04301459,4013.0,4012.6,0.55]
[1734424776954,1.04301459,4013.0,4012.6,0.31090529]
[1734424777259,1.04301459,4013.0,4012.7,0.55]
[1734424777417,1.04301459,4013.1,4012.8,0.31090529]
[1734424777623,1.04301459,4013.0,4012.9,0.55]
[1734424777873,1.04301459,4013.1,4012.9,0.55]
[1734424778617,1.04301459,4013.1,4012.8,0.31090529]
[1734424778618,1.04301459,4013.1,4012.5,0.55]
[1734424778823,1.04301459,4013.1,4012.5,1.06829068]
[1734424779264,1.04301459,4013.0,4012.5,1.06829068]
[1734424779472,1.04301459,4013.1,4012.5,1.06829068]
[1734424779921,1.04301459,4013.1,4012.5,1.37919597]
[1734424780436,1.80801459,4013.0,4012.5,1.37919597]
[1734424780624,1.04301459,4012.8,4012.1,0.7691]
[1734424780982,2.32945139,4013.0,4012.1,0.7691]
[1734424780983,1.04301459,4012.7,4012.1,0.7691]
[1734424781827,1.04301459,4012.7,4012.3,3.0]
[1734424782158,1.04301459,4012.7,4012.4,0.55]
[1734424783122,1.80801459,4012.5,4011.8,0.55]
[1734424783320,1.80801459,4012.5,4011.5,0.7691]
[1734424783321,1.04317574,4012.4,4011.5,0.7691]
[1734424783521,1.04317574,4012.3,4011.9,0.31090529]
[1734424784526,1.04317574,4012.3,4012.0,0.55]
[1734424786436,1.04317574,4012.4,4012.0,0.96999852]
[1734424786631,1.56445139,4012.6,4012.0,0.96999852]
[1734424786632,1.07209646,4012.5,4012.2,0.55]
[1734424786833,1.04317574,4012.8,4012.4,0.55]
[1734424787143,1.07209646,4013.0,4012.6,0.55]
[1734424787932,1.04317574,4013.1,4012.6,0.55]
[1734424788375,1.04317574,4013.1,4012.5,0.55]
[1734424789483,1.04317574,4013.1,4012.5,0.86090529]
[1734424789670,1.04317574,4013.1,4012.7,0.55]
[1734424790515,3.88660385,4013.3,4012.7,0.55]
[1734424790516,1.04317574,4013.0,4012.7,0.55]
[1734424790714,1.04317574,4013.1,4012.7,0.55]
[1734424791844,1.56445139,4013.2,4012.7,0.55]
[1734424791845,1.04317574,4013.0,4012.7,0.55]
[1734424796152,1.04317574,4013.0,4012.7,0.71519053]
[1734424798652,1.04317574,4013.1,4012.7,0.71519053]
[1734424798849,1.04317574,4013.0,4012.7,0.71519053]
[1734424799957,1.04317574,4013.0,4012.7,0.55]
[1734424800900,0.7641,4012.7,4012.0,0.33907991]
[1734424801088,1.04317574,4012.5,4011.2,2.15253946]
[1734424801292,3.3653282,4012.4,4011.3,1.18949378]
[1734424801506,1.04317574,4012.4,4011.7,0.8034]
[1734424801869,0.7641,4013.2,4011.9,0.8034]
[1734424801870,1.80727574,4013.2,4011.9,0.8034]
[1734424801975,1.56445139,4013.4,4011.9,0.8034]
[1734424801976,1.04317574,4013.4,4012.1,1.03823417]
[1734424802176,1.04317574,4013.4,4012.3,3.0]
[1734424802378,1.04317574,4013.4,4012.5,0.55]
[1734424802602,1.04317574,4013.4,4012.6,0.69307739]
[1734424802810,1.04317574,4013.3,4012.7,0.55]
[1734424802982,1.04317574,4013.3,4012.7,0.88364321]
[1734424804458,1.04317574,4013.3,4012.7,1.24307739]
[1734424804906,1.04317574,4013.3,4012.8,0.33364321]
[1734424805106,2.32855139,4013.5,4012.8,0.33364321]
[1734424805107,1.04317574,4013.4,4012.9,0.55]
[1734424805842,1.04317574,4013.3,4012.9,0.55]
[1734424806956,3.3653282,4013.3,4012.9,0.55]
[1734424807107,1.04317574,4013.2,4012.9,0.55]
[1734424807551,1.04317574,4013.0,4012.0,0.55]
[1734424807710,3.08625246,4012.4,4011.8,0.33364321]
[1734424808249,1.04314636,4012.3,4011.8,0.33364321]
[1734424808407,1.04314636,4012.3,4011.8,0.69307739]
[1734424808610,4.12939882,4012.4,4011.8,0.69307739]
[1734424809118,1.04314636,4012.2,4011.8,0.69307739]
[1734424809451,1.04314636,4012.1,4011.9,0.55]
[1734424810450,1.04314636,4012.0,4011.9,0.55]
[1734424810776,1.56445139,4012.2,4011.9,0.55]
[1734424810777,1.04314636,4012.1,4011.9,0.55]
[1734424811422,1.04314636,4012.1,4011.5,0.55]
[1734424811909,1.04314636,4012.1,4011.6,0.55]
[1734424812559,0.7641,4012.0,4011.6,0.55]
[1734424813711,3.08625246,4012.0,4011.6,0.55]
[1734424814060,1.04314636,4011.9,4011.6,0.55]
[1734424815615,4.12939882,4012.0,4011.6,0.55]
[1734424815951,4.43802407,4012.0,4011.6,0.55]
[1734424816248,1.04314636,4011.9,4011.4,0.55]
[1734424816466,2.32215246,4011.6,4011.2,0.55]
[1734424817036,0.755,4011.5,4011.2,0.55]
[1734424817748,0.755,4011.5,4011.2,0.35943418]
[1734424817951,0.755,4011.5,4011.3,0.55]
[1734424818544,2.32215246,4011.6,4011.3,1.3345]
[1734424818919,3.07715246,4011.6,4010.9,0.55]
[1734424819229,3.07715246,4011.6,4010.9,0.88364321]
[1734424819645,2.32215246,4011.0,4010.9,0.88364321]
[1734424820580,2.32215246,4011.0,4010.9,0.33364321]
[1734424821770,2.32215246,4011.0,4010.9,0.88364321]
[1734424822206,1.04314636,4011.6,4011.1,0.55]
[1734424822350,1.56445139,4011.8,4011.1,0.55]
[1734424822351,2.32215246,4011.2,4011.1,0.88364321]
[1734424825867,2.32215246,4011.2,4011.1,0.55]
[1734424826078,2.32215246,4011.2,4010.8,0.55]
[1734424826258,2.32215246,4011.2,4010.8,0.88364321]
[1734424826457,2.32215246,4011.2,4010.9,0.33364321]
[1734424826661,2.32215246,4011.2,4011.0,0.55]
[1734424826861,0.755,4011.6,4011.0,0.55]
[1734424826862,2.32215246,4011.6,4011.1,1.11814321]
[1734424827117,2.32215246,4011.6,4011.2,0.55]
[1734424827411,2.32215246,4011.6,4011.0,0.31818418]
[1734424827412,2.32215246,4011.3,4011.0,0.31818418]
[1734424827614,2.55436771,4011.2,4010.4,0.7845]
[1734424827936,3.07715246,4011.3,4009.0,0.7845]
[1734424827937,2.32215246,4010.8,4009.0,0.7845]
[1734424828139,2.32215246,4010.8,4010.0,0.7845]
[1734424828335,2.32215246,4010.8,4010.1,0.31818418]
[1734424828668,2.32215246,4010.8,4010.2,0.7845]
[1734424828975,2.32215246,4010.8,4010.4,0.55]
[1734424829114,2.32215246,4010.8,4010.6,0.55]
[1734424831745,2.32215246,4010.8,4010.5,0.55]
[1734424832133,2.32215246,4010.8,4010.4,3.0]
[1734424832574,2.32215246,4010.8,4010.5,0.55]
[1734424832752,2.32215246,4010.4,4010.3,0.55]
[1734424833498,2.32215246,4010.4,4010.3,3.0]
[1734424833653,2.32215246,4010.4,4010.3,0.55]
[1734424834184,2.32215246,4010.4,4010.2,3.0]
[1734424834724,2.32215246,4010.4,4010.0,0.55]
[1734424835309,2.32215246,4010.4,4010.3,0.55]
[1734424835511,0.7656,4011.1,4010.3,0.96]
[1734424835749,1.04314636,4011.5,4010.3,0.96]
[1734424835750,2.32215246,4011.3,4010.5,3.55]
[1734424836221,2.32215246,4011.3,4010.7,0.55]
[1734424836427,2.32215246,4011.3,4010.7,0.86818418]
[1734424836551,2.32215246,4011.3,4010.8,0.55]
[1734424837108,0.7656,4011.5,4010.8,0.55]
[1734424837109,2.32215246,4010.9,4010.8,0.55]
[1734424837670,2.32215246,4010.9,4010.5,3.55]
[1734424837969,2.32215246,4010.9,4010.4,0.7893]
[1734424837970,2.32215246,4010.9,4010.7,0.55]
[1734424839030,2.32215246,4010.9,4010.5,3.55]
[1734424839930,2.32215246,4010.9,4010.5,0.86818418]
[1734424840141,2.32215246,4010.9,4010.5,3.86818418]
[1734424840710,2.32215246,4010.9,4010.7,0.55]
[1734424840861,2.32215246,4010.9,4010.7,1.07074842]
[1734424841573,2.32215246,4010.9,4010.7,0.55]
[1734424842601,0.7656,4011.9,4011.2,3.0]
[1734424842792,0.7656,4011.9,4011.3,0.86818418]
[1734424842793,2.32215246,4011.9,4011.3,0.86818418]
[1734424842990,2.32215246,4011.9,4011.5,0.55]
[1734424843186,2.32215246,4011.9,4011.7,0.55]
[1734424843563,2.32215246,4011.9,4011.5,0.55]
[1734424845102,2.32215246,4011.9,4011.2,3.0]
[1734424845103,0.7656,4011.8,4011.2,3.0]
[1734424845404,2.32215246,4011.5,4011.2,3.0]
[1734424845766,2.32215246,4011.5,4011.0,3.0]
[1734424845964,2.32215246,4011.5,4009.8,0.29848355]
[1734424845965,3.14185246,4011.1,4009.9,0.7933]
[1734424846204,2.32215246,4010.4,4009.9,0.7933]
[1734424847675,2.32215246,4010.4,4009.7,0.12548831]
[1734424847872,2.32215246,4010.0,4009.7,0.12548831]
[1734424848596,2.32215246,4010.0,4009.6,0.8284]
[1734424849582,2.32215246,4010.0,4009.7,0.55]
[1734424849731,2.32215246,4010.0,4009.6,0.55]
[1734424850295,2.32215246,4010.0,4009.8,0.55]
[1734424850814,0.812,4009.9,4009.0,0.8284]
[1734424851014,2.32215246,4009.2,4008.9,0.31818418]
[1734424853230,2.32215246,4009.2,4009.0,0.55]
[1734424853415,1.85514636,4009.9,4009.0,0.55]
[1734424853730,1.85514636,4009.9,4009.2,0.55]
[1734424853731,3.13415246,4009.9,4009.2,0.55]
[1734424853956,3.13415246,4009.9,4009.3,0.31818418]
[1734424854156,3.13415246,4009.9,4009.4,0.55]
[1734424856431,3.13415246,4009.9,4009.2,0.55]
[1734424856672,2.32215246,4009.9,4009.2,0.55]
[1734424856790,2.32215246,4010.3,4009.6,1.3784]
[1734424856993,2.32215246,4010.3,4009.8,0.55]
[1734424857224,1.56445139,4011.0,4009.8,0.55]
[1734424857225,1.85514636,4010.9,4010.2,0.55]
[1734424857514,0.812,4010.9,4010.2,0.55]
[1734424857907,2.32215246,4010.6,4010.2,0.55]
[1734424858623,0.812,4010.9,4009.8,0.55]
[1734424858837,1.85514636,4010.9,4009.8,0.55]
[1734424859038,1.85514636,4010.9,4010.0,0.55]
[1734424859039,1.04314636,4010.8,4010.0,0.55]
[1734424859247,1.85514636,4010.9,4010.0,0.55]
[1734424859448,1.85514636,4010.9,4009.9,3.0]
[1734424859449,1.04314636,4010.8,4009.9,3.0]
[1734424859747,1.535452,4010.8,4010.0,0.55]
[1734424860716,1.535452,4010.8,4009.9,3.0]
[1734424860918,1.535452,4010.8,4010.0,0.55]
[1734424861414,1.535452,4010.8,4009.8,0.55]
[1734424861793,0.812,4010.9,4010.0,0.55]
[1734424862091,0.812,4010.9,4010.1,0.31818418]
[1734424862213,0.812,4010.9,4010.2,0.55]
[1734424862666,0.812,4010.9,4009.8,0.55]
[1734424862815,1.85514636,4010.9,4009.8,0.55]
[1734424863023,0.812,4010.9,4010.0,0.55]
[1734424863579,1.85514636,4010.9,4010.0,0.55]
[1734424863731,0.812,4010.9,4010.0,0.55]
[1734424865787,1.85514636,4010.9,4010.0,0.55]
[1734424865986,0.812,4010.9,4010.0,0.55]
[1734424866198,0.812,4010.9,4009.8,0.55]
[1734424866199,2.42932138,4010.9,4009.8,0.55]
[1734424866354,1.04314636,4010.8,4009.8,0.55]
[1734424866904,2.42932138,4010.9,4009.8,0.55]
[1734424867204,2.42932138,4010.9,4010.0,0.55]
[1734424867505,2.42932138,4010.9,4009.8,0.55]
[1734424868007,1.38617502,4010.9,4009.8,1.05044002]
[1734424868204,0.812,4010.9,4009.8,1.05044002]
[1734424869846,0.812,4010.9,4009.8,0.55]
[1734424870049,1.85514636,4010.9,4009.8,0.55]
[1734424870246,0.812,4010.9,4010.0,0.55]
[1734424870708,1.04314636,4010.9,4009.8,0.55]
[1734424870848,0.7563,4010.7,4009.5,0.55]
[1734424871045,4.4579886,4010.7,4009.5,0.55]
[1734424871285,4.4579886,4010.7,4010.0,0.55]
[1734424872203,3.7016886,4010.7,4010.0,0.55]
[1734424872427,0.7563,4010.2,4010.0,0.55]
[1734424872723,0.7563,4010.2,4009.1,0.7819]
[1734424872846,0.7563,4010.2,4009.1,1.10008418]
[1734424873392,1.32490502,4010.2,4009.1,1.10008418]
[1734424873548,1.32490502,4010.2,4009.2,0.31818418]
[1734424873867,1.32490502,4010.2,4009.4,3.0]
[1734424874219,1.32490502,4010.2,4009.5,0.55]
[1734424874351,0.7563,4010.2,4009.6,0.55]
[1734424874549,0.7563,4010.2,4009.6,3.55]
[1734424874765,0.7563,4010.2,4009.4,0.31818418]
[1734424874766,0.7563,4010.2,4009.5,0.55]
[1734424874990,0.7563,4010.2,4009.7,0.55]
[1734424875191,0.41215988,4010.1,4008.9,0.31818418]
[1734424875448,0.7795,4010.0,4008.9,0.31818418]
[1734424875757,0.7795,4010.0,4009.4,3.0]
[1734424875945,0.7795,4010.0,4008.9,0.31818418]
[1734424876146,0.7795,4010.0,4009.4,3.0]
[1734424876551,0.7795,4010.0,4009.5,0.55]
[1734424877475,0.7795,4010.0,4009.4,3.0]
[1734424877803,0.7795,4010.0,4009.5,0.55]
[1734424878008,0.7795,4010.3,4009.5,1.3686]
[1734424878309,0.7795,4010.3,4009.5,0.55]
[1734424878494,1.11820978,4010.3,4009.5,0.55]
[1734424879012,0.7795,4010.3,4009.5,1.3686]
[1734424879359,0.7795,4010.3,4009.5,1.68678418]
[1734424880351,0.7795,4010.6,4009.7,0.55]
[1734424881389,0.7795,4010.6,4009.6,0.55]
[1734424882076,0.7795,4010.4,4009.2,0.55]
[1734424882259,0.7795,4010.3,4009.2,0.55]
[1734424882467,0.7795,4010.3,4009.3,0.31818418]
[1734424882688,0.7795,4010.3,4009.4,3.55]
[1734424882860,0.7795,4010.3,4009.4,0.86818418]
[1734424883585,1.04314636,4010.3,4009.4,0.55]
[1734424883789,0.7795,4010.1,4009.4,0.55]
[1734424886053,0.7795,4010.1,4009.4,0.86818418]
[1734424886455,0.7795,4010.5,4009.6,0.55]
[1734424886690,0.7795,4010.8,4009.8,0.55]
[1734424886917,0.7795,4011.1,4010.3,0.55]
[1734424887119,0.7795,4011.1,4010.5,0.55]
[1734424887402,1.82264636,4011.5,4010.5,0.96]
[1734424887696,1.82264636,4011.5,4010.6,0.02190681]
[1734424888052,0.7795,4011.5,4010.6,0.02190681]
[1734424888253,0.7795,4011.5,4010.7,0.55]
[1734424888861,1.82264636,4011.5,4010.4,0.55]
[1734424889188,1.82264636,4011.5,4010.6,0.55]
[1734424889396,1.82264636,4011.5,4010.5,0.55]
[1734424889694,1.82264636,4011.5,4010.4,0.55]
[1734424890179,1.04314636,4011.3,4010.4,0.55]
[1734424890557,1.04314636,4011.3,4010.4,3.55]
[1734424890853,1.04314636,4011.2,4010.4,3.55]
[1734424891083,1.04314636,4011.3,4010.4,3.55]
[1734424891655,1.04314636,4011.3,4010.5,0.02492728]
[1734424891853,1.04314636,4011.3,4010.4,0.98686]
[1734424891854,1.04314636,4011.4,4010.4,0.89311146]
[1734424892294,1.82264636,4011.5,4010.4,0.89311146]
[1734424892894,1.04314636,4011.4,4010.4,0.86818418]
[1734424893194,1.04314636,4011.4,4010.4,0.55]
[1734424893354,1.04314636,4011.4,4010.6,0.55]
[1734424893765,0.7795,4011.5,4010.6,0.55]
[1734424893766,1.82264636,4011.5,4010.6,0.55]
[1734424893967,1.56445139,4011.7,4010.5,0.13686]
[1734424893968,1.04314636,4011.7,4011.0,0.55]
[1734424894166,1.82264636,4011.8,4011.2,0.55]
[1734424894389,0.7795,4011.8,4011.2,0.55]
[1734424894574,1.82264636,4011.8,4010.9,0.55]
[1734424894784,1.82264636,4011.8,4010.9,0.71867842]
[1734424895391,1.82264636,4011.8,4010.9,3.71867842]
[1734424895578,0.7795,4011.8,4010.9,0.71867842]
[1734424895766,0.7795,4011.8,4010.9,3.71867842]
[1734424896188,0.7795,4011.8,4010.9,0.71867842]
[1734424896506,1.04314636,4011.9,4011.4,0.55]
[1734424896668,0.7795,4012.1,4011.4,0.57492621]
[1734424897004,0.7795,4012.1,4011.6,0.55]
[1734424898170,0.4795,4012.1,4011.6,0.55]
[1734424899781,1.56445139,4012.9,4011.6,0.55]
[1734424899782,1.04314636,4012.9,4011.9,0.55]
[1734424899977,1.04314636,4013.1,4011.9,0.55]
[1734424900296,1.53612138,4013.1,4012.0,0.55]
[1734424900516,2.32215246,4012.9,4011.6,0.55]
[1734424901003,2.32215246,4012.9,4011.9,3.0]
[1734424901189,0.7795,4012.8,4012.0,0.55]
[1734424901586,0.7795,4012.8,4011.9,3.0]
[1734424901787,0.7795,4012.4,4011.6,3.0]
[1734424901987,0.7795,4012.4,4011.1,0.8186]